[Event "Late-Titled-Tuesday-Blitz-October-24-2023"]
[Site "Chess.com"]
[Date "2023.10.24"]
[Round "9"]
[White "Bala-Afiada"]
[Black "PapaieDudu"]
[Result "0-1"]
[WhiteElo "1861"]
[BlackElo "2332"]
[TimeControl "180+1"]
[EndTime "15:42:15 PDT"]
[Termination "PapaieDudu won by resignation"]

1. d4 {[%clk 0:01:39.5]} 1... d5 {[%clk 0:02:58.9]} 2. c4 {[%clk 0:01:39.9]}
2... dxc4 {[%clk 0:02:58]} 3. Nf3 {[%clk 0:01:38.8]} 3... Nf6 {[%clk 0:02:58.4]}
4. g3 {[%clk 0:01:39.3]} 4... e6 {[%clk 0:02:58]} 5. Bg2 {[%clk 0:01:39.8]} 5...
Bb4+ {[%clk 0:02:57.5]} 6. Bd2 {[%clk 0:01:39.3]} 6... Be7 {[%clk 0:02:57.8]} 7.
O-O {[%clk 0:01:39.2]} 7... O-O {[%clk 0:02:58.5]} 8. Qc2 {[%clk 0:01:31.4]}
8... b5 {[%clk 0:02:58.7]} 9. a4 {[%clk 0:01:28]} 9... c6 {[%clk 0:02:56.9]} 10.
Ne5 {[%clk 0:01:28.3]} 10... Nd5 {[%clk 0:02:52.1]} 11. e4 {[%clk 0:01:21.2]}
11... Nb6 {[%clk 0:02:46.5]} 12. a5 {[%clk 0:01:19.7]} 12... Na4 {[%clk
0:02:36.3]} 13. Be3 {[%clk 0:00:53.6]} 13... Qxa5 {[%clk 0:02:34.6]} 14. b3
{[%clk 0:00:51.2]} 14... cxb3 {[%clk 0:02:35]} 15. Qxb3 {[%clk 0:00:50.3]} 15...
Bb7 {[%clk 0:02:31]} 16. Nd3 {[%clk 0:00:34.5]} 16... Nd7 {[%clk 0:02:14.3]} 17.
e5 {[%clk 0:00:32.4]} 17... Qc7 {[%clk 0:01:49.9]} 18. Rc1 {[%clk 0:00:23.2]}
18... a6 {[%clk 0:01:49.8]} 19. Nd2 {[%clk 0:00:20.4]} 19... Rfd8 {[%clk
0:01:48.8]} 20. Ne4 {[%clk 0:00:20.7]} 20... h6 {[%clk 0:01:45.4]} 21. Ndc5
{[%clk 0:00:21.1]} 21... Ndxc5 {[%clk 0:01:45.1]} 22. Nxc5 {[%clk 0:00:21.7]}
22... Nxc5 {[%clk 0:01:45.3]} 23. dxc5 {[%clk 0:00:22.3]} 23... Qxe5 {[%clk
0:01:45.7]} 24. Bf4 {[%clk 0:00:19.2]} 24... Qf5 {[%clk 0:01:38.7]} 25. Re1
{[%clk 0:00:16.5]} 25... Bf6 {[%clk 0:01:39.1]} 26. Be4 {[%clk 0:00:14.6]} 26...
Qxc5 {[%clk 0:01:36.6]} 27. Rac1 {[%clk 0:00:13.6]} 27... Qb6 {[%clk 0:01:36.9]}
28. Be3 {[%clk 0:00:13.4]} 28... Qc7 {[%clk 0:01:33.6]} 29. Bf4 {[%clk
0:00:13.5]} 29... e5 {[%clk 0:01:32.1]} 30. Be3 {[%clk 0:00:13.2]} 30... Rac8
{[%clk 0:01:25.7]} 31. Bf5 {[%clk 0:00:12.8]} 31... Rb8 {[%clk 0:01:24.7]} 32.
Red1 {[%clk 0:00:13.4]} 32... Rxd1+ {[%clk 0:01:23.7]} 33. Rxd1 {[%clk
0:00:14.3]} 33... Rd8 {[%clk 0:01:24.2]} 34. Rc1 {[%clk 0:00:13.8]} 34... Qd6
{[%clk 0:01:22.9]} 35. Be4 {[%clk 0:00:13.5]} 35... Bg5 {[%clk 0:01:16.3]} 36.
Bc5 {[%clk 0:00:13]} 36... Qd7 {[%clk 0:01:12.1]} 37. Rd1 {[%clk 0:00:13.7]}
37... Qxd1+ {[%clk 0:01:11.7]} 0-1

[Event "Late-Titled-Tuesday-Blitz-October-24-2023"]
[Site "Chess.com"]
[Date "2023.10.24"]
[Round "9"]
[White "biostatistician"]
[Black "DefiantChair"]
[Result "0-1"]
[WhiteElo "2590"]
[BlackElo "2693"]
[TimeControl "180+1"]
[EndTime "15:42:20 PDT"]
[Termination "DefiantChair won on time"]

1. d4 {[%clk 0:03:00]} 1... Nf6 {[%clk 0:03:00.7]} 2. Nf3 {[%clk 0:02:59.7]}
2... d5 {[%clk 0:03:00.3]} 3. c4 {[%clk 0:02:59.9]} 3... e6 {[%clk 0:03:01]} 4.
Nc3 {[%clk 0:02:59.7]} 4... Bb4 {[%clk 0:03:01.1]} 5. e3 {[%clk 0:02:58.6]} 5...
O-O {[%clk 0:02:59.8]} 6. Bd3 {[%clk 0:02:58.7]} 6... dxc4 {[%clk 0:03:00.1]} 7.
Bxc4 {[%clk 0:02:59.6]} 7... c5 {[%clk 0:03:00.6]} 8. O-O {[%clk 0:02:59.5]}
8... Nc6 {[%clk 0:03:00.3]} 9. a3 {[%clk 0:02:49.4]} 9... Bxc3 {[%clk
0:02:59.8]} 10. bxc3 {[%clk 0:02:50.3]} 10... Qc7 {[%clk 0:03:00.5]} 11. Qe2
{[%clk 0:02:48.3]} 11... e5 {[%clk 0:02:59.9]} 12. Bb2 {[%clk 0:02:04]} 12...
Bg4 {[%clk 0:02:55.8]} 13. h3 {[%clk 0:01:53.7]} 13... Bh5 {[%clk 0:02:55]} 14.
g4 {[%clk 0:01:23.2]} 14... Bg6 {[%clk 0:02:54.6]} 15. Rad1 {[%clk 0:01:08.6]}
15... Rad8 {[%clk 0:02:44.9]} 16. Ba2 {[%clk 0:01:04]} 16... exd4 {[%clk
0:02:43.1]} 17. cxd4 {[%clk 0:01:04.9]} 17... cxd4 {[%clk 0:02:37.4]} 18. Nxd4
{[%clk 0:01:05.8]} 18... Be4 {[%clk 0:02:25.1]} 19. g5 {[%clk 0:00:48.8]} 19...
Nd5 {[%clk 0:02:06.4]} 20. Qg4 {[%clk 0:00:49]} 20... Rfe8 {[%clk 0:01:58.2]}
21. Nf5 {[%clk 0:00:39]} 21... Qc8 {[%clk 0:01:47.3]} 22. Nxg7 {[%clk
0:00:29.4]} 22... Ne5 {[%clk 0:01:25.7]} 23. Bxe5 {[%clk 0:00:22.6]} 23... Rxe5
{[%clk 0:01:22.8]} 24. Qxc8 {[%clk 0:00:21.1]} 24... Rxc8 {[%clk 0:01:23.7]} 25.
f4 {[%clk 0:00:19.4]} 25... Re7 {[%clk 0:01:20.9]} 26. Bb3 {[%clk 0:00:19.4]}
26... Nxe3 {[%clk 0:01:20.6]} 27. Nh5 {[%clk 0:00:08.7]} 27... Nxf1 {[%clk
0:01:19.9]} 28. Nf6+ {[%clk 0:00:05.2]} 28... Kg7 {[%clk 0:01:19.6]} 29. Kxf1
{[%clk 0:00:03.8]} 29... Bc2 {[%clk 0:01:13.2]} 30. Rc1 {[%clk 0:00:02.8]} 30...
Bd3+ {[%clk 0:01:13]} 31. Kf2 {[%clk 0:00:03.1]} 31... Rxc1 {[%clk 0:01:13.9]}
0-1

[Event "Late-Titled-Tuesday-Blitz-October-24-2023"]
[Site "Chess.com"]
[Date "2023.10.24"]
[Round "9"]
[White "Semetey"]
[Black "Fradi82"]
[Result "1-0"]
[WhiteElo "2522"]
[BlackElo "2353"]
[TimeControl "180+1"]
[EndTime "15:42:27 PDT"]
[Termination "Semetey won on time"]

1. a3 {[%clk 0:03:00.9]} 1... d5 {[%clk 0:02:56.1]} 2. d4 {[%clk 0:02:57.5]}
2... c6 {[%clk 0:02:53.5]} 3. Nf3 {[%clk 0:02:57.6]} 3... Bg4 {[%clk 0:02:50.1]}
4. Ne5 {[%clk 0:02:54.1]} 4... Bf5 {[%clk 0:02:48.5]} 5. Bf4 {[%clk 0:02:49.1]}
5... Nd7 {[%clk 0:02:47.3]} 6. Nd2 {[%clk 0:02:48.9]} 6... Nxe5 {[%clk
0:02:40.5]} 7. Bxe5 {[%clk 0:02:48.3]} 7... Nf6 {[%clk 0:02:39.5]} 8. e3 {[%clk
0:02:48.1]} 8... e6 {[%clk 0:02:38.6]} 9. c4 {[%clk 0:02:47.2]} 9... Bd6 {[%clk
0:02:38.4]} 10. Bxd6 {[%clk 0:02:42.1]} 10... Qxd6 {[%clk 0:02:39.3]} 11. c5
{[%clk 0:02:42.4]} 11... Qd7 {[%clk 0:02:38.8]} 12. Be2 {[%clk 0:02:37.9]} 12...
O-O {[%clk 0:02:38.4]} 13. O-O {[%clk 0:02:37.5]} 13... Rfe8 {[%clk 0:02:38.4]}
14. f4 {[%clk 0:02:36.7]} 14... Ne4 {[%clk 0:02:37.3]} 15. Nxe4 {[%clk
0:02:36.1]} 15... Bxe4 {[%clk 0:02:37.2]} 16. b4 {[%clk 0:02:35.4]} 16... a6
{[%clk 0:02:02.4]} 17. a4 {[%clk 0:02:28.3]} 17... Rf8 {[%clk 0:02:01.3]} 18.
Qb3 {[%clk 0:02:24.8]} 18... Qc7 {[%clk 0:01:51.9]} 19. b5 {[%clk 0:02:23.7]}
19... axb5 {[%clk 0:01:51.1]} 20. axb5 {[%clk 0:02:23.5]} 20... b6 {[%clk
0:01:45.5]} 21. Ra6 {[%clk 0:01:56.4]} 21... Rfb8 {[%clk 0:01:14.8]} 22. cxb6
{[%clk 0:01:53.2]} 22... Qb7 {[%clk 0:01:06.1]} 23. Rfa1 {[%clk 0:01:45.5]}
23... cxb5 {[%clk 0:00:37.8]} 24. Ra7 {[%clk 0:01:44]} 24... Rxa7 {[%clk
0:00:28.3]} 25. bxa7 {[%clk 0:01:42.6]} 25... Ra8 {[%clk 0:00:27.4]} 26. Qxb5
{[%clk 0:01:42.6]} 26... Qc7 {[%clk 0:00:14.3]} 27. Qc5 {[%clk 0:01:33.8]} 27...
Qb7 {[%clk 0:00:08.6]} 28. Bb5 {[%clk 0:01:33]} 28... h5 {[%clk 0:00:06.2]} 29.
h3 {[%clk 0:01:25.9]} 29... h4 {[%clk 0:00:06.1]} 30. Kh2 {[%clk 0:01:26]} 30...
Kh7 {[%clk 0:00:06.5]} 31. Ra2 {[%clk 0:01:12.6]} 31... Rc8 {[%clk 0:00:06.2]}
32. Qxc8 {[%clk 0:01:10.7]} 32... Qxb5 {[%clk 0:00:03.2]} 33. a8=Q {[%clk
0:01:10.6]} 33... Qf1 {[%clk 0:00:02.9]} 34. Qh8+ {[%clk 0:01:08.5]} 34... Kg6
{[%clk 0:00:03.5]} 35. Qxh4 {[%clk 0:01:08.4]} 35... Qb1 {[%clk 0:00:01.4]} 36.
Qg5+ {[%clk 0:01:08]} 1-0

[Event "Late-Titled-Tuesday-Blitz-October-24-2023"]
[Site "Chess.com"]
[Date "2023.10.24"]
[Round "9"]
[White "SpeedofLight0"]
[Black "vladislavkovalev"]
[Result "0-1"]
[WhiteElo "2968"]
[BlackElo "2885"]
[TimeControl "180+1"]
[EndTime "15:42:35 PDT"]
[Termination "vladislavkovalev won by resignation"]

1. e4 {[%clk 0:03:00.9]} 1... e5 {[%clk 0:02:58.1]} 2. Nf3 {[%clk 0:03:00.9]}
2... Nc6 {[%clk 0:02:58.7]} 3. Bc4 {[%clk 0:03:01.2]} 3... Nf6 {[%clk
0:02:58.8]} 4. d3 {[%clk 0:03:01.2]} 4... Bc5 {[%clk 0:02:59.4]} 5. O-O {[%clk
0:03:01.8]} 5... d6 {[%clk 0:02:59.9]} 6. Bg5 {[%clk 0:03:02.3]} 6... h6 {[%clk
0:02:59.8]} 7. Bh4 {[%clk 0:03:02.8]} 7... a6 {[%clk 0:03:00.1]} 8. c3 {[%clk
0:03:02.8]} 8... Ba7 {[%clk 0:03:00]} 9. Nbd2 {[%clk 0:03:02.8]} 9... O-O {[%clk
0:02:50.1]} 10. Re1 {[%clk 0:03:02.4]} 10... g5 {[%clk 0:02:49.5]} 11. Bg3
{[%clk 0:03:02.6]} 11... Kg7 {[%clk 0:02:45.6]} 12. a4 {[%clk 0:03:01.3]} 12...
Nh7 {[%clk 0:02:38]} 13. d4 {[%clk 0:03:00.8]} 13... Qf6 {[%clk 0:02:18.1]} 14.
Bd5 {[%clk 0:02:53.7]} 14... g4 {[%clk 0:02:01.4]} 15. dxe5 {[%clk 0:02:38.3]}
15... Nxe5 {[%clk 0:01:41.9]} 16. Nxe5 {[%clk 0:02:31.8]} 16... dxe5 {[%clk
0:01:42.8]} 17. Nc4 {[%clk 0:02:32]} 17... Re8 {[%clk 0:01:42.8]} 18. Ne3 {[%clk
0:02:27.4]} 18... h5 {[%clk 0:01:41.3]} 19. Nf5+ {[%clk 0:02:19.7]} 19... Bxf5
{[%clk 0:01:37.2]} 20. exf5 {[%clk 0:02:20.6]} 20... c6 {[%clk 0:01:29.1]} 21.
Be4 {[%clk 0:02:19.6]} 21... Rad8 {[%clk 0:01:25.6]} 22. Qe2 {[%clk 0:02:19.6]}
22... Qg5 {[%clk 0:01:16.6]} 23. h4 {[%clk 0:02:04.5]} 23... gxh3 {[%clk
0:01:16.4]} 24. Kh1 {[%clk 0:02:04.7]} 24... h4 {[%clk 0:01:07.4]} 25. Bh2
{[%clk 0:02:03.6]} 25... Rd2 {[%clk 0:01:07.2]} 26. Qc4 {[%clk 0:01:30.7]} 26...
Bxf2 {[%clk 0:00:55]} 27. Red1 {[%clk 0:01:11.8]} 27... Bg3 {[%clk 0:00:39.6]}
28. Bg1 {[%clk 0:00:42.4]} 28... Red8 {[%clk 0:00:34.6]} 29. Rxd2 {[%clk
0:00:37.5]} 29... Rxd2 {[%clk 0:00:35.5]} 30. gxh3 {[%clk 0:00:30.5]} 30... Bf4
{[%clk 0:00:35]} 31. Re1 {[%clk 0:00:24.1]} 31... Qg3 {[%clk 0:00:34]} 32. Re2
{[%clk 0:00:17.8]} 32... Qxh3+ {[%clk 0:00:33.4]} 33. Bh2 {[%clk 0:00:18]} 33...
Rd1+ {[%clk 0:00:33.6]} 0-1

[Event "Late-Titled-Tuesday-Blitz-October-24-2023"]
[Site "Chess.com"]
[Date "2023.10.24"]
[Round "9"]
[White "carloseduar100"]
[Black "santosalberto1987"]
[Result "1-0"]
[WhiteElo "2303"]
[BlackElo "2404"]
[TimeControl "180+1"]
[EndTime "15:42:38 PDT"]
[Termination "carloseduar100 won by checkmate"]

1. d4 {[%clk 0:02:55.9]} 1... d5 {[%clk 0:02:58.2]} 2. c3 {[%clk 0:02:56]} 2...
Nf6 {[%clk 0:02:57.2]} 3. e3 {[%clk 0:02:56]} 3... e6 {[%clk 0:02:50.5]} 4. Bd3
{[%clk 0:02:55.9]} 4... c5 {[%clk 0:02:48.7]} 5. f4 {[%clk 0:02:56.2]} 5... Nbd7
{[%clk 0:02:46.6]} 6. Nf3 {[%clk 0:02:56.8]} 6... b6 {[%clk 0:02:46.9]} 7. O-O
{[%clk 0:02:57.1]} 7... Bb7 {[%clk 0:02:47.5]} 8. Ne5 {[%clk 0:02:56.2]} 8...
Be7 {[%clk 0:02:45.1]} 9. Nd2 {[%clk 0:02:55.2]} 9... O-O {[%clk 0:02:44.7]} 10.
Kh1 {[%clk 0:02:55.5]} 10... Ne4 {[%clk 0:02:40.8]} 11. Qh5 {[%clk 0:02:54.4]}
11... f6 {[%clk 0:02:27.2]} 12. Nxd7 {[%clk 0:02:13.8]} 12... Qxd7 {[%clk
0:02:28.1]} 13. a4 {[%clk 0:02:02.6]} 13... f5 {[%clk 0:02:26.1]} 14. Nf3 {[%clk
0:01:56.9]} 14... Bf6 {[%clk 0:02:25.7]} 15. Ne5 {[%clk 0:01:57]} 15... Bxe5
{[%clk 0:02:25.9]} 16. fxe5 {[%clk 0:01:57.4]} 16... Qf7 {[%clk 0:02:24.4]} 17.
Qxf7+ {[%clk 0:01:52.3]} 17... Rxf7 {[%clk 0:02:24.5]} 18. Bxe4 {[%clk
0:01:52.1]} 18... fxe4 {[%clk 0:02:19.7]} 19. Bd2 {[%clk 0:01:49.2]} 19... Raf8
{[%clk 0:02:16.9]} 20. Kg1 {[%clk 0:01:47.4]} 20... Ba6 {[%clk 0:02:15.9]} 21.
Rxf7 {[%clk 0:01:46.7]} 21... Rxf7 {[%clk 0:02:16.3]} 22. h3 {[%clk 0:01:42]}
22... Bd3 {[%clk 0:02:14.3]} 23. b4 {[%clk 0:01:33.1]} 23... cxb4 {[%clk
0:01:57.9]} 24. cxb4 {[%clk 0:01:32.5]} 24... Bc4 {[%clk 0:01:55.1]} 25. Bc3
{[%clk 0:01:25.1]} 25... g5 {[%clk 0:01:54.4]} 26. b5 {[%clk 0:01:11.4]} 26...
Kg7 {[%clk 0:01:53.5]} 27. a5 {[%clk 0:01:11.3]} 27... Bxb5 {[%clk 0:01:53.4]}
28. axb6 {[%clk 0:01:11.5]} 28... axb6 {[%clk 0:01:54.3]} 29. Ra8 {[%clk
0:01:10]} 29... Rb7 {[%clk 0:01:32.9]} 30. Bb4 {[%clk 0:01:07.2]} 30... Bd7
{[%clk 0:01:17.6]} 31. Kf2 {[%clk 0:01:06.3]} 31... b5 {[%clk 0:01:15.7]} 32.
Kg3 {[%clk 0:01:06.3]} 32... Rc7 {[%clk 0:01:14.1]} 33. Bc5 {[%clk 0:01:04.8]}
33... Rc8 {[%clk 0:01:14.3]} 34. Ra7 {[%clk 0:01:02.8]} 34... Rd8 {[%clk
0:01:14.4]} 35. Bb6 {[%clk 0:01:01.3]} 35... Rb8 {[%clk 0:01:15]} 36. Rxd7+
{[%clk 0:01:01.2]} 36... Kg6 {[%clk 0:01:15.7]} 37. Ba7 {[%clk 0:00:39.8]} 37...
Ra8 {[%clk 0:01:09.5]} 38. Rb7 {[%clk 0:00:39.3]} 38... Kf5 {[%clk 0:01:03.6]}
39. Bc5 {[%clk 0:00:37.6]} 39... Ra5 {[%clk 0:01:03.3]} 40. Rg7 {[%clk
0:00:31.1]} 40... h5 {[%clk 0:01:01.9]} 41. h4 {[%clk 0:00:25.4]} 41... gxh4+
{[%clk 0:00:59.6]} 42. Kxh4 {[%clk 0:00:25.5]} 42... Ra2 {[%clk 0:00:56.5]} 43.
Rg5# {[%clk 0:00:24.8]} 1-0

[Event "Late-Titled-Tuesday-Blitz-October-24-2023"]
[Site "Chess.com"]
[Date "2023.10.24"]
[Round "9"]
[White "MajorCoast"]
[Black "UK_23"]
[Result "0-1"]
[WhiteElo "2254"]
[BlackElo "2400"]
[TimeControl "180+1"]
[EndTime "15:42:42 PDT"]
[Termination "UK_23 won by checkmate"]

1. d4 {[%clk 0:03:00.9]} 1... d5 {[%clk 0:02:56.6]} 2. Nf3 {[%clk 0:03:01.3]}
2... Nf6 {[%clk 0:02:56.7]} 3. c4 {[%clk 0:03:00.4]} 3... e6 {[%clk 0:02:56.9]}
4. e3 {[%clk 0:02:58.8]} 4... Be7 {[%clk 0:02:57.5]} 5. Nbd2 {[%clk 0:02:57.8]}
5... O-O {[%clk 0:02:58.1]} 6. b3 {[%clk 0:02:58.1]} 6... a6 {[%clk 0:02:58.2]}
7. Bd3 {[%clk 0:02:57.8]} 7... b6 {[%clk 0:02:58.7]} 8. Bb2 {[%clk 0:02:57.8]}
8... Bb7 {[%clk 0:02:59.2]} 9. O-O {[%clk 0:02:58]} 9... Nbd7 {[%clk 0:02:59.8]}
10. Ne5 {[%clk 0:02:55.6]} 10... Nxe5 {[%clk 0:02:59.7]} 11. dxe5 {[%clk
0:02:55.4]} 11... Nd7 {[%clk 0:03:00.4]} 12. f4 {[%clk 0:02:54.8]} 12... Nc5
{[%clk 0:02:59.8]} 13. Bc2 {[%clk 0:02:50.5]} 13... dxc4 {[%clk 0:02:55.8]} 14.
bxc4 {[%clk 0:02:17.9]} 14... Nd3 {[%clk 0:02:52.7]} 15. Bd4 {[%clk 0:02:03.8]}
15... c5 {[%clk 0:02:47.6]} 16. Bxd3 {[%clk 0:01:57.6]} 16... cxd4 {[%clk
0:02:47.1]} 17. e4 {[%clk 0:01:56.5]} 17... Bc5 {[%clk 0:02:42.3]} 18. Rf3
{[%clk 0:01:50.1]} 18... f6 {[%clk 0:02:37.4]} 19. Rh3 {[%clk 0:01:44.3]} 19...
g6 {[%clk 0:02:36.1]} 20. Qg4 {[%clk 0:01:20.5]} 20... f5 {[%clk 0:02:30.6]} 21.
exf5 {[%clk 0:01:12.7]} 21... exf5 {[%clk 0:02:31.5]} 22. Qe2 {[%clk 0:01:04.4]}
22... Qe7 {[%clk 0:02:25.6]} 23. Re1 {[%clk 0:01:02.9]} 23... a5 {[%clk
0:02:22.8]} 24. Nf3 {[%clk 0:00:51.9]} 24... Be4 {[%clk 0:01:57.2]} 25. Ng5
{[%clk 0:00:47.2]} 25... Bxd3 {[%clk 0:01:57.6]} 26. Qxd3 {[%clk 0:00:47.1]}
26... h5 {[%clk 0:01:57.9]} 27. Rg3 {[%clk 0:00:37.4]} 27... Kh8 {[%clk
0:01:55.7]} 28. Nf3 {[%clk 0:00:32.4]} 28... Rg8 {[%clk 0:01:54.5]} 29. e6
{[%clk 0:00:29.1]} 29... Rad8 {[%clk 0:01:50.4]} 30. Re5 {[%clk 0:00:22.7]}
30... Rd6 {[%clk 0:01:44.6]} 31. Ng5 {[%clk 0:00:16]} 31... Rc6 {[%clk
0:01:31.2]} 32. Nf7+ {[%clk 0:00:14]} 32... Kh7 {[%clk 0:01:27.5]} 33. Ng5+
{[%clk 0:00:14]} 33... Kg7 {[%clk 0:01:24.9]} 34. h3 {[%clk 0:00:14]} 34... Bd6
{[%clk 0:01:20.5]} 35. Nf7 {[%clk 0:00:07.9]} 35... Bxe5 {[%clk 0:01:17.5]} 36.
Nxe5 {[%clk 0:00:08.8]} 36... Rxe6 {[%clk 0:01:17.1]} 37. Qxf5 {[%clk 0:00:07]}
37... Kh7 {[%clk 0:01:14.4]} 38. Nxg6 {[%clk 0:00:06.5]} 38... Rgxg6 {[%clk
0:01:12.4]} 39. Qxh5+ {[%clk 0:00:06]} 39... Rh6 {[%clk 0:01:04.8]} 40. Qf5+
{[%clk 0:00:05.2]} 40... Reg6 {[%clk 0:01:05.4]} 41. Rxg6 {[%clk 0:00:03.4]}
41... Rxg6 {[%clk 0:01:06.3]} 42. Qh5+ {[%clk 0:00:03.4]} 42... Kg7 {[%clk
0:01:06.2]} 43. f5 {[%clk 0:00:03.2]} 43... Qe1+ {[%clk 0:01:06.4]} 44. Kh2
{[%clk 0:00:03]} 44... Qg3+ {[%clk 0:01:07.1]} 45. Kh1 {[%clk 0:00:02.2]} 45...
Qxg2# {[%clk 0:01:08]} 0-1

[Event "Late-Titled-Tuesday-Blitz-October-24-2023"]
[Site "Chess.com"]
[Date "2023.10.24"]
[Round "9"]
[White "whiteglovethief"]
[Black "Nikita_Klepikov"]
[Result "0-1"]
[WhiteElo "2508"]
[BlackElo "2369"]
[TimeControl "180+1"]
[EndTime "15:42:52 PDT"]
[Termination "Nikita_Klepikov won by resignation"]

1. d4 {[%clk 0:02:59.7]} 1... Nf6 {[%clk 0:03:00]} 2. c4 {[%clk 0:02:59.2]} 2...
d6 {[%clk 0:03:00.5]} 3. Nc3 {[%clk 0:02:58.5]} 3... e5 {[%clk 0:03:01.2]} 4. d5
{[%clk 0:02:56.3]} 4... Bf5 {[%clk 0:03:00.1]} 5. g3 {[%clk 0:02:49.7]} 5... a5
{[%clk 0:02:45.5]} 6. Bg2 {[%clk 0:02:49.3]} 6... Na6 {[%clk 0:02:45.7]} 7. e4
{[%clk 0:02:48.2]} 7... Bg4 {[%clk 0:02:45.7]} 8. f3 {[%clk 0:02:47.4]} 8... Bd7
{[%clk 0:02:45.6]} 9. Be3 {[%clk 0:02:47.4]} 9... Be7 {[%clk 0:02:44.6]} 10.
Nge2 {[%clk 0:02:47]} 10... b6 {[%clk 0:02:44.3]} 11. b3 {[%clk 0:02:45.1]}
11... Qc8 {[%clk 0:02:40.4]} 12. O-O {[%clk 0:02:44.5]} 12... Bh3 {[%clk
0:02:40.2]} 13. a3 {[%clk 0:02:41.9]} 13... Bxg2 {[%clk 0:02:40.5]} 14. Kxg2
{[%clk 0:02:41.3]} 14... h5 {[%clk 0:02:40.2]} 15. h3 {[%clk 0:02:20.8]} 15...
Nh7 {[%clk 0:02:35.8]} 16. f4 {[%clk 0:02:15.4]} 16... h4 {[%clk 0:02:28.1]} 17.
g4 {[%clk 0:02:15.1]} 17... exf4 {[%clk 0:02:22.4]} 18. Bxf4 {[%clk 0:02:14.3]}
18... Bf6 {[%clk 0:02:22.2]} 19. Nd4 {[%clk 0:02:08]} 19... O-O {[%clk
0:02:17.1]} 20. Rc1 {[%clk 0:02:03]} 20... Re8 {[%clk 0:02:13.5]} 21. Nc6 {[%clk
0:01:29.7]} 21... Nc5 {[%clk 0:02:09.4]} 22. b4 {[%clk 0:01:27.3]} 22... axb4
{[%clk 0:02:08.5]} 23. axb4 {[%clk 0:01:27.1]} 23... Nxe4 {[%clk 0:02:09.2]} 24.
Nxe4 {[%clk 0:01:26.8]} 24... Rxe4 {[%clk 0:02:08.5]} 25. Rc2 {[%clk 0:01:23]}
25... Qe8 {[%clk 0:01:51.2]} 26. Qf3 {[%clk 0:01:22]} 26... Bg5 {[%clk
0:01:21.3]} 27. Bh2 {[%clk 0:01:04.1]} 27... Re3 {[%clk 0:01:05.4]} 28. Qf2
{[%clk 0:01:04.5]} 28... Raa3 {[%clk 0:01:00.8]} 29. Nd4 {[%clk 0:00:48.6]}
29... Rxh3 {[%clk 0:00:46.8]} 30. Re2 {[%clk 0:00:47.3]} 30... Rhe3 {[%clk
0:00:42.8]} 31. Rfe1 {[%clk 0:00:44.7]} 31... Nf6 {[%clk 0:00:41.6]} 32. Nf5
{[%clk 0:00:43]} 32... Qe4+ {[%clk 0:00:32.3]} 33. Kg1 {[%clk 0:00:41.2]} 33...
Qxg4+ {[%clk 0:00:29.7]} 34. Kf1 {[%clk 0:00:34.4]} 34... Rf3 {[%clk 0:00:26.1]}
0-1

[Event "Late-Titled-Tuesday-Blitz-October-24-2023"]
[Site "Chess.com"]
[Date "2023.10.24"]
[Round "9"]
[White "talaicito"]
[Black "Escudito"]
[Result "0-1"]
[WhiteElo "2215"]
[BlackElo "2471"]
[TimeControl "180+1"]
[EndTime "15:42:53 PDT"]
[Termination "Escudito won on time"]

1. d4 {[%clk 0:03:00.9]} 1... d5 {[%clk 0:02:59.7]} 2. Nc3 {[%clk 0:03:01.2]}
2... Nf6 {[%clk 0:02:58.2]} 3. Bf4 {[%clk 0:03:01.8]} 3... c6 {[%clk 0:02:56.6]}
4. e3 {[%clk 0:03:02.1]} 4... g6 {[%clk 0:02:57]} 5. Nf3 {[%clk 0:03:01]} 5...
Bg7 {[%clk 0:02:57.5]} 6. Ne5 {[%clk 0:03:01.3]} 6... O-O {[%clk 0:02:57.5]} 7.
h4 {[%clk 0:03:01.5]} 7... Nbd7 {[%clk 0:02:39.7]} 8. f3 {[%clk 0:02:59.4]} 8...
Nxe5 {[%clk 0:02:34.4]} 9. Bxe5 {[%clk 0:02:46.3]} 9... Qb6 {[%clk 0:02:33.2]}
10. a3 {[%clk 0:02:44]} 10... Bh6 {[%clk 0:02:19.1]} 11. g4 {[%clk 0:02:02.3]}
11... Nd7 {[%clk 0:01:43.6]} 12. Bf4 {[%clk 0:01:14.3]} 12... Bg7 {[%clk
0:01:35.1]} 13. Na4 {[%clk 0:00:46.7]} 13... Qa5+ {[%clk 0:01:25.1]} 14. c3
{[%clk 0:00:46.8]} 14... e5 {[%clk 0:01:24.9]} 15. Bg3 {[%clk 0:00:35.8]} 15...
exd4 {[%clk 0:01:21]} 16. exd4 {[%clk 0:00:36.2]} 16... Re8+ {[%clk 0:01:21.1]}
17. Kf2 {[%clk 0:00:36.1]} 17... Nf6 {[%clk 0:01:05.3]} 18. Bd3 {[%clk
0:00:35.6]} 18... Qd8 {[%clk 0:01:01.2]} 19. h5 {[%clk 0:00:24.4]} 19... b6
{[%clk 0:00:54.8]} 20. hxg6 {[%clk 0:00:13.1]} 20... hxg6 {[%clk 0:00:55.7]} 21.
Qd2 {[%clk 0:00:11.8]} 21... Bd7 {[%clk 0:00:44]} 22. b4 {[%clk 0:00:09.7]}
22... c5 {[%clk 0:00:43.7]} 23. Nb2 {[%clk 0:00:07.7]} 23... cxd4 {[%clk
0:00:27.1]} 24. cxd4 {[%clk 0:00:08.6]} 24... Bxg4 {[%clk 0:00:27.1]} 25. fxg4
{[%clk 0:00:08.3]} 25... Nxg4+ {[%clk 0:00:28]} 26. Kg2 {[%clk 0:00:08.3]} 26...
Ne3+ {[%clk 0:00:20.5]} 27. Kh2 {[%clk 0:00:05.5]} 27... Qg5 {[%clk 0:00:18.6]}
0-1